bitfinex-derivatives/quotes_SOLF0:USTF0_20250424
["timestamp","ask_amount","ask_price","bid_price","bid_amount"]
[1745525157911,6.5838,151.81,151.79,6.8799521]
[1745525158113,6.5838,151.81,151.77,9.52490442]
[1745525158314,6.5838,151.81,151.78,6.88006447]
[1745525158514,24.24,151.85,151.75,9.52490442]
[1745525158515,6.5849,151.79,151.75,9.52490442]
[1745525158816,9.52490442,151.8,151.76,6.87662303]
[1745525159016,16.10940442,151.8,151.77,6.87662303]
[1745525159218,16.10940442,151.8,151.78,6.87662303]
[1745525159420,16.10940442,151.8,151.75,16.11120442]
[1745525159719,6.5847,151.79,151.76,8.52031147]
[1745525160022,9.52490442,151.8,151.77,8.52031147]
[1745525160320,9.52490442,151.8,151.78,6.87348079]
[1745525160513,9.52490442,151.8,151.75,16.11120442]
[1745525160719,9.52490442,151.8,151.76,6.87388751]
[1745525160916,9.52490442,151.8,151.77,6.87388751]
[1745525161110,9.52490442,151.8,151.78,6.87388751]
[1745525161314,9.52490442,151.8,151.76,1.64682897]
[1745525161517,9.52490442,151.8,151.77,8.52100255]
[1745525161721,9.52490442,151.8,151.78,6.87417358]
[1745525161915,9.52490442,151.8,151.77,1.64682897]
[1745525162116,9.52490442,151.8,151.75,9.52490442]
[1745525162319,9.52490442,151.8,151.76,6.87015828]
[1745525162521,6.5846,151.79,151.77,6.87015828]
[1745525162722,6.5846,151.79,151.78,1.6468222]
[1745525162923,6.5846,151.79,151.78,8.52025047]
[1745525163124,6.5846,151.79,151.78,1.6468222]
[1745525164521,6.5846,151.79,151.76,9.52490442]
[1745525164722,6.5846,151.79,151.77,6.87502032]
[1745525164922,16.10920442,151.8,151.76,16.11070442]
[1745525165124,16.10920442,151.8,151.77,6.87520114]
[1745525165417,16.10920442,151.8,151.78,1.64680444]
[1745525165620,16.10920442,151.8,151.76,16.11070442]
[1745525165820,6.5846,151.79,151.76,9.52490442]
[1745525166024,6.5846,151.79,151.77,8.52110395]
[1745525166224,6.585,151.78,151.77,1.64680444]
[1745525166726,6.585,151.79,151.76,9.52490442]
[1745525167324,9.52490442,151.8,151.74,33.76490442]
[1745525167527,9.52490442,151.8,151.75,6.87678711]
[1745525167728,9.52490442,151.8,151.76,6.87678711]
[1745525167923,6.5853,151.78,151.74,40.35140442]
[1745525168125,6.5853,151.78,151.75,6.87667106]
[1745525168427,6.5853,151.78,151.76,8.5235803]
[1745525168627,6.5853,151.78,151.74,40.35140442]
[1745525168823,6.5853,151.78,151.75,6.87916011]
[1745525169125,6.5853,151.78,151.76,6.87916011]
[1745525169326,6.5853,151.78,151.75,6.5862]
[1745525169526,6.5853,151.78,151.76,6.88043116]
[1745525169729,6.5853,151.78,151.74,40.35140442]
[1745525169928,6.5853,151.78,151.75,6.87805931]
[1745525170228,6.5853,151.78,151.76,6.87805931]
[1745525170428,6.5853,151.78,151.76,1.64696624]
[1745525170629,6.5853,151.78,151.75,6.5862]
[1745525170835,6.5853,151.78,151.76,6.87951611]
[1745525171023,6.5855,151.77,151.74,33.76490442]
[1745525171223,9.52490442,151.78,151.75,8.52828131]
[1745525171425,9.52490442,151.78,151.75,1.64700312]
[1745525171919,9.52490442,151.78,151.76,1.64700312]
[1745525172329,6.5857,151.77,151.74,24.24]
[1745525172526,6.5857,151.77,151.75,6.8814005]
[1745525172830,6.5852,151.78,151.74,24.24]
[1745525173031,6.5852,151.78,151.75,1.64701352]
[1745525173529,6.5852,151.78,151.76,8.52866523]
[1745525173725,24.24,151.85,151.76,11.17191794]
[1745525173929,9.52490442,151.81,151.78,6.585]
[1745525174124,9.52490442,151.82,151.78,6.585]
[1745525174334,24.24,151.85,151.78,6.585]
[1745525174529,16.10840442,151.82,151.77,6.5852]
[1745525174731,16.10840442,151.82,151.76,9.52490442]
[1745525174932,9.52490442,151.82,151.77,6.88004005]
[1745525175126,9.52490442,151.82,151.78,8.52679036]
[1745525175331,9.52490442,151.82,151.78,25.64675031]
[1745525175526,9.52490442,151.83,151.79,6.87802842]
[1745525175830,9.52490442,151.83,151.8,13.46212842]
[1745525176027,9.52490442,151.83,151.8,6.5841]
[1745525176434,16.10680442,151.86,151.8,9.52490442]
[1745525176630,16.10680442,151.86,151.81,6.87270154]
[1745525176833,16.10680442,151.86,151.8,9.52490442]
[1745525177034,24.0,151.88,151.82,1.6463455]
[1745525177226,9.52490442,151.85,151.82,1.6463455]
[1745525177432,9.52490442,151.85,151.8,9.52490442]
[1745525177732,9.52490442,151.85,151.81,15.09810679]
[1745525177932,9.52490442,151.85,151.82,24.0]
[1745525178235,6.5827,151.84,151.82,24.0]
[1745525184742,6.5828,151.83,151.82,24.0]
[1745525185341,6.5826,151.84,151.82,24.0]
[1745525186136,6.5828,151.83,151.82,24.0]
[1745525188242,498.64,151.91,151.82,24.0]
[1745525188437,9.52490442,151.87,151.82,33.52490442]
[1745525189442,9.52490442,151.87,151.83,1.8478]
[1745525190143,6.5816,151.86,151.83,8.4304]
[1745525191745,9.52490442,151.85,151.82,24.0]
[1745525192145,6.5827,151.84,151.82,24.0]
[1745525192649,9.52490442,151.85,151.82,24.0]
[1745525193047,16.10720442,151.85,151.82,24.0]
[1745525193945,6.5825,151.84,151.82,24.0]
[1745525194548,6.5828,151.83,151.82,24.0]
[1745525194749,9.52490442,151.85,151.82,30.86273344]
[1745525194949,9.52490442,151.85,151.82,24.0]
[1745525195448,6.5826,151.84,151.82,24.0]
[1745525195745,16.10710442,151.85,151.82,24.0]
[1745525196851,6.5824,151.84,151.82,24.0]
[1745525197548,6.5824,151.84,151.83,6.87164778]
[1745525198346,6.5824,151.84,151.83,8.51788049]
[1745525198649,6.5824,151.84,151.83,8.51872894]
[1745525203853,9.52490442,151.87,151.83,8.51872894]
[1745525204051,24.0,151.91,151.84,16.39740065]
[1745525204349,6.5805,151.89,151.85,13.45419623]
[1745525204551,6.5805,151.89,151.85,8.22793271]
[1745525204852,6.5805,151.89,151.85,6.5817]
[1745525205152,9.52490442,151.91,151.87,6.581]
[1745525205652,9.52490442,151.92,151.88,16.3939875]
[1745525205951,9.52490442,151.92,151.89,6.86695699]
[1745525206151,6.5791,151.92,151.88,16.10530442]
[1745525206348,23.9,151.97,151.9,9.52490442]
[1745525206553,9.52490442,151.95,151.92,9.52490442]
[1745525206946,9.52490442,151.95,151.91,25.5454218]
[1745525207151,9.52490442,151.95,151.91,23.9]
[1745525207348,9.52490442,151.93,151.91,23.9]
[1745525207848,23.9,152.0,151.91,23.9]
[1745525208047,9.52490442,151.93,151.91,23.9]
[1745525208353,9.52490442,151.93,151.87,23.88]
[1745525208652,9.52490442,151.91,151.87,23.88]
[1745525209047,9.52490442,151.91,151.88,1.64570336]
[1745525209250,6.5804,151.89,151.88,1.64570336]
[1745525209550,9.52490442,151.91,151.87,23.88]
[1745525210054,6.5807,151.88,151.87,23.88]
[1745525210249,6.5807,151.88,151.87,30.73778788]
[1745525210448,6.5807,151.88,151.87,32.3835377]
[1745525211454,6.5801,151.9,151.87,32.3835377]
[1745525211753,6.5801,151.9,151.88,8.50146322]
[1745525212056,6.5802,151.89,151.88,1.64574982]
[1745525212454,6.5802,151.89,151.88,8.501555]
[1745525212754,6.5802,151.89,151.88,1.64574982]
[1745525213452,6.5802,151.89,151.88,8.50211554]
[1745525214354,6.5802,151.89,151.88,8.50259295]
[1745525214758,6.5802,151.89,151.88,18.02749737]
[1745525215050,9.52490442,151.92,151.88,18.02749737]
[1745525215255,9.52490442,151.94,151.89,8.50189614]
[1745525215553,9.52490442,151.94,151.9,11.17065424]
[1745525215954,9.52490442,151.94,151.9,9.52490442]
[1745525216157,6.5786,151.93,151.91,6.85421486]
[1745525216357,9.52490442,151.94,151.9,11.46430442]
[1745525216555,6.5785,151.93,151.91,30.73423873]
[1745525216760,9.52490442,151.96,151.92,9.52490442]
[1745525217160,6.5774,151.96,151.93,9.52490442]
[1745525217458,9.52490442,151.98,151.93,9.52490442]
[1745525217658,9.52490442,151.97,151.93,9.52490442]
[1745525217858,6.5774,151.96,151.92,9.52490442]
[1745525218256,6.578,151.95,151.92,9.52490442]
[1745525218456,6.578,151.95,151.91,43.81000442]
[1745525218661,6.578,151.95,151.92,6.85461917]
[1745525218863,6.578,151.95,151.91,43.81000442]
[1745525219063,6.578,151.95,151.92,6.85415104]
[1745525219363,6.578,151.95,151.91,43.81000442]
[1745525219558,6.5781,151.94,151.92,6.85423228]
[1745525219754,9.52490442,151.93,151.91,1.9511]
[1745525219958,9.52490442,151.92,151.91,25.8311]
[1745525220262,9.52490442,151.92,151.91,32.68652703]
[1745525220462,9.52490442,151.92,151.91,25.8311]
[1745525220662,9.52490442,151.92,151.91,27.47639659]
[1745525220957,16.10380442,151.92,151.91,27.47639659]
[1745525221264,16.10380442,151.92,151.91,25.52529659]
[1745525221561,6.5802,151.89,151.88,23.88]
[1745525221761,6.5802,151.89,151.88,30.73929527]
[1745525222062,6.5802,151.89,151.88,32.3847834]
[1745525223162,16.10490442,151.9,151.88,32.3847834]
[1745525223356,16.10490442,151.9,151.89,6.85929527]
[1745525223761,16.10490442,151.9,151.89,8.5047834]
[1745525225763,16.10490442,151.9,151.89,1.64548813]
[1745525226163,6.5802,151.89,151.88,23.88]
[1745525226364,6.5802,151.89,151.88,30.7401663]
[1745525226768,16.10490442,151.9,151.88,32.38582133]
[1745525227064,16.10490442,151.9,151.89,1.64565503]
[1745525227563,6.5802,151.89,151.88,23.88]
[1745525227762,9.52490442,151.9,151.88,30.74213289]
[1745525227963,9.52490442,151.9,151.88,25.52565263]
[1745525228163,37.034,151.97,151.88,23.88]
[1745525228468,23.88,151.97,151.89,16.3869284]
[1745525228662,9.52490442,151.96,151.91,16.10410442]
[1745525228869,9.52490442,151.96,151.92,6.85967095]
[1745525229068,9.52490442,151.96,151.91,9.52490442]
[1745525229367,9.52490442,151.96,151.92,30.67755957]
[1745525229569,9.52490442,151.96,151.93,8.5020016]
[1745525229763,9.52490442,151.96,151.93,1.64527248]
[1745525229964,6.578,151.95,151.93,1.64527248]
[1745525230368,6.578,151.95,151.92,23.82]
[1745525230869,6.578,151.95,151.93,6.85955051]
[1745525231166,6.578,151.95,151.93,1.64519416]
[1745525231469,6.578,151.95,151.92,23.82]
[1745525231669,6.578,151.95,151.93,6.85935279]
[1745525231871,6.578,151.95,151.92,23.82]
[1745525232369,9.52490442,151.96,151.93,6.85727786]
[1745525232569,9.52490442,151.96,151.92,23.82]
[1745525233166,9.52490442,151.96,151.93,8.50239138]
[1745525233365,6.5777,151.95,151.93,1.64518453]
[1745525233665,9.52490442,151.96,151.93,1.64518453]
[1745525233865,9.52490442,151.96,151.92,23.82]
[1745525234060,9.52490442,151.94,151.89,23.82]
[1745525234264,9.52490442,151.92,151.9,6.86026569]
[1745525234467,6.5796,151.91,151.9,1.64542214]
[1745525234867,6.5796,151.91,151.89,23.82]
[1745525235067,9.52490442,151.9,151.89,23.82]
[1745525235267,9.52490442,151.9,151.89,6.86186113]
[1745525235569,9.52490442,151.9,151.89,1.64546065]
[1745525236068,9.52490442,151.9,151.86,30.4011]
[1745525236267,9.52490442,151.9,151.87,8.51051543]
[1745525236465,16.10470442,151.9,151.88,6.86444582]
[1745525236662,16.10470442,151.9,151.87,1.64570878]
[1745525236866,16.10470442,151.9,151.88,8.51010891]
[1745525237066,16.10470442,151.9,151.88,1.64570878]
[1745525237269,16.10470442,151.9,151.86,23.82]
[1745525237467,6.5803,151.89,151.87,6.86568942]
[1745525237664,6.5803,151.89,151.88,6.8656921]
[1745525237863,9.52490442,151.9,151.85,3.7295]
[1745525238063,16.10640442,151.87,151.86,6.86807027]
[1745525238570,16.10640442,151.87,151.86,8.51394131]
[1745525238771,9.52490442,151.87,151.86,8.51394131]
[1745525238972,9.52490442,151.89,151.86,8.51394131]
[1745525239273,9.52490442,151.89,151.87,8.51394131]
[1745525239467,16.10540442,151.89,151.87,1.64587104]
[1745525239875,16.10540442,151.89,151.85,3.7295]
[1745525240066,9.52490442,151.89,151.86,13.44921946]
[1745525240371,9.52490442,151.89,151.87,8.51357492]
[1745525240570,16.10520442,151.89,151.87,1.64585546]
[1745525240771,16.10520442,151.89,151.85,10.3113]
[1745525241071,16.10520442,151.89,151.86,6.86831871]
[1745525241267,16.10520442,151.89,151.87,6.86831871]
[1745525241467,16.10520442,151.89,151.88,6.86901483]
[1745525242176,16.10520442,151.89,151.88,8.51477318]
[1745525242669,16.10520442,151.89,151.88,1.64575835]
[1745525242974,9.52490442,151.89,151.88,8.51549768]
[1745525243775,16.10450442,151.91,151.88,8.51549768]
[1745525243976,9.52490442,151.91,151.89,6.86973933]
[1745525244274,9.52490442,151.91,151.89,1.64575835]
[1745525244876,9.52490442,151.91,151.87,23.82]
[1745525245077,9.52490442,151.91,151.88,6.87292251]
[1745525245380,6.5801,151.9,151.87,23.82]
[1745525245676,6.5801,151.9,151.88,8.52062418]
[1745525245876,6.5801,151.9,151.88,1.64574951]
[1745525246176,16.10450442,151.91,151.89,6.87646993]
[1745525246377,16.10450442,151.91,151.89,1.64574951]
[1745525246576,9.52490442,151.91,151.89,1.64574951]
[1745525246778,6.5798,151.9,151.87,23.82]
[1745525246979,6.5798,151.9,151.88,6.87642463]
[1745525247182,6.5798,151.9,151.89,6.87841125]
[1745525247580,16.10450442,151.91,151.89,6.87841125]
[1745525247779,16.10450442,151.91,151.9,8.52405416]
[1745525248380,9.52490442,151.91,151.9,8.52405416]
[1745525248679,9.52490442,151.91,151.9,8.52384644]
[1745525248880,16.10430442,151.91,151.9,8.52384644]
[1745525249381,13.1517,152.0,151.9,8.52384644]
[1745525249580,13.1517,152.0,151.91,40.22310795]
[1745525249581,9.52490442,151.97,151.91,40.22310795]
[1745525249880,6.5774,151.96,151.92,13.45690353]
[1745525250080,6.5774,151.96,151.93,6.87820353]
[1745525250281,9.52490442,151.97,151.94,6.87820353]
[1745525250483,6.5766,151.98,151.95,16.39700462]
[1745525250678,6.5766,151.98,151.96,1.64564291]
[1745525251381,6.5766,151.98,151.95,33.34490442]
[1745525251592,6.5768,151.97,151.96,6.86867886]
[1745525251882,9.52490442,151.99,151.96,6.86867886]
[1745525252083,9.52490442,151.99,151.95,23.82]
[1745525252380,6.5766,151.98,151.95,23.82]
[1745525252682,9.52490442,152.0,151.96,8.50942357]
[1745525252874,9.52490442,151.98,151.96,1.64487088]
[1745525253081,9.52490442,151.98,151.95,23.82]
[1745525253275,9.52490442,151.96,151.95,23.82]
[1745525253481,9.52490442,151.96,151.92,23.82]
[1745525253680,6.579,151.94,151.93,6.86457479]
[1745525253885,19.7054,152.18,151.94,19.76]
[1745525254081,9.52490442,152.15,152.07,9.52490442]
[1745525254282,9.52490442,152.15,152.09,9.52490442]
[1745525254881,9.52490442,152.15,152.08,23.82]
[1745525254882,9.52490442,152.15,152.11,9.52490442]
[1745525255291,14.80017748,152.18,152.08,38.62017748]
[1745525255687,14.80017748,152.18,152.09,7.11474698]
[1745525255887,14.80017748,152.18,152.08,38.62017748]
[1745525256085,21.36887748,152.18,152.1,6.5717]
[1745525256392,14.80017748,152.19,152.08,38.62017748]
[1745525256585,6.5687,152.18,152.09,7.10101599]
[1745525256889,14.80017748,152.19,152.1,7.10101599]
[1745525257088,14.80017748,152.19,152.08,38.62017748]
[1745525257290,14.80017748,152.19,152.09,7.08929846]
[1745525257489,14.80017748,152.19,152.08,38.62017748]
[1745525257687,1.1822,152.22,152.1,6.5717]
[1745525257887,14.80017748,152.19,152.08,38.62017748]
[1745525258389,14.80017748,152.17,152.08,38.62017748]
[1745525258983,14.80017748,152.15,152.08,24.04]
[1745525259381,6.5708,152.13,152.08,24.04]
[1745525259790,14.80017748,152.15,152.08,24.04]
[1745525261089,14.80017748,152.13,152.04,14.80017748]
[1745525261390,14.80017748,152.11,152.05,24.04]
[1745525262890,14.80017748,152.11,152.06,6.5734]
[1745525263386,14.80017748,152.11,152.05,30.6138]
[1745525263892,14.80017748,152.11,152.05,24.04]
[1745525264091,14.80017748,152.13,152.05,24.04]
[1745525264389,24.04,152.15,152.05,24.04]
[1745525264390,14.80017748,152.17,152.08,14.80017748]
[1745525264588,14.80017748,152.17,152.09,24.04]
[1745525264793,14.80017748,152.19,152.1,14.80017748]
[1745525265089,14.80017748,152.19,152.1,20.76227748]
[1745525265290,6.5685,152.18,152.1,20.76227748]
[1745525265683,6.5685,152.18,152.11,24.04]
[1745525265887,6.5685,152.18,152.12,6.5708]
[1745525267691,6.5688,152.17,152.12,6.5708]
[1745525268791,21.36897748,152.17,152.12,6.5708]
[1745525268994,6.5693,152.16,152.12,6.5708]
[1745525269290,14.80017748,152.17,152.12,6.5708]
[1745525269493,21.36907748,152.17,152.12,6.5708]
[1745525269988,21.36907748,152.17,152.12,30.5908]
[1745525270188,21.36907748,152.17,152.13,6.5704]
[1745525271294,21.36907748,152.17,152.12,30.5908]
[1745525272294,21.36907748,152.17,152.13,6.5705]
[1745525273097,21.36907748,152.17,152.12,30.5907]
[1745525273895,24.04,152.2,152.12,24.02]
[1745525274102,14.80017748,152.2,152.12,38.82017748]
[1745525274406,14.80017748,152.22,152.12,38.82017748]
[1745525274703,6.5674,152.21,152.16,6.569]
[1745525274904,0.29433,152.23,152.17,24.02]
[1745525275104,14.80017748,152.22,152.17,24.02]
[1745525275305,0.29433,152.23,152.17,24.02]
[1745525276005,6.567,152.22,152.17,30.5885]
[1745525276205,0.29433,152.23,152.17,24.02]
[1745525276507,6.5667,152.22,152.17,30.5886]
[1745525277210,6.5667,152.22,152.18,6.5683]
[1745525277506,6.5667,152.22,152.17,24.02]
[1745525277908,6.5667,152.22,152.17,30.5885]
[1745525278409,6.5672,152.21,152.17,30.5885]
[1745525279309,6.5677,152.2,152.17,24.02]
[1745525279510,14.80017748,152.22,152.17,24.02]
[1745525279809,14.80017748,152.2,152.15,24.02]
[1745525280411,14.80017748,152.18,152.1,479.3221]
[1745525280708,14.80017748,152.18,152.11,24.02]
[1745525280910,14.80017748,152.18,152.11,30.5912]
[1745525281111,14.80017748,152.2,152.12,14.80017748]
[1745525281411,14.80017748,152.2,152.14,6.5698]
[1745525281603,14.80017748,152.2,152.15,24.02]
[1745525281807,6.5681,152.19,152.15,24.02]
[1745525282009,14.80017748,152.22,152.15,24.02]
[1745525282508,6.5678,152.2,152.15,24.02]
[1745525282714,14.80017748,152.22,152.15,24.02]
[1745525283213,6.5675,152.2,152.15,30.5896]
[1745525283413,14.80017748,152.2,152.15,24.02]
[1745525283916,6.5686,152.18,152.15,24.02]
[1745525284125,14.80017748,152.18,152.15,24.02]
[1745525285117,6.5692,152.16,152.15,24.02]
[1745525285315,14.80017748,152.18,152.15,24.02]
[1745525285812,24.02,152.21,152.15,24.02]
[1745525286018,14.80017748,152.16,152.11,23.94]
[1745525286216,14.80017748,152.14,152.11,23.94]
[1745525286413,6.5705,152.13,152.11,23.94]
[1745525287218,21.37047748,152.14,152.11,23.94]
[1745525288615,14.80017748,152.14,152.11,23.94]
[1745525288819,14.80017748,152.14,152.11,30.5112]
[1745525290821,21.36957748,152.16,152.11,23.94]
[1745525291521,21.36957748,152.16,152.12,6.5706]
[1745525291821,21.36957748,152.16,152.11,23.94]
[1745525292222,14.80017748,152.16,152.13,6.5705]
[1745525292522,14.80017748,152.16,152.11,23.94]
[1745525292715,14.80017748,152.16,152.13,6.5703]
[1745525292917,14.80017748,152.16,152.11,23.94]
[1745525293423,14.80017748,152.16,152.12,7.08127714]
[1745525293624,14.80017748,152.16,152.11,23.94]
[1745525293822,14.80017748,152.16,152.12,7.08298183]
[1745525294022,21.36957748,152.16,152.12,6.5708]
[1745525294223,21.36957748,152.16,152.13,7.09236318]
[1745525294523,21.36957748,152.16,152.12,6.5708]
[1745525294724,21.36957748,152.16,152.13,7.09782612]
[1745525294918,21.36957748,152.16,152.12,6.5708]
[1745525295118,21.36957748,152.16,152.13,7.09817919]
[1745525295320,21.36957748,152.16,152.12,6.5708]
[1745525295618,21.36957748,152.16,152.13,7.10803654]
[1745525295819,21.36957748,152.16,152.12,6.5708]
[1745525296020,21.36957748,152.16,152.13,7.10817309]
[1745525296220,21.36957748,152.16,152.14,7.10817309]
[1745525296521,21.36957748,152.16,152.12,6.5708]
[1745525296722,21.36957748,152.16,152.13,7.11662825]
[1745525297022,21.36957748,152.16,152.14,7.11662825]
[1745525297222,21.36957748,152.16,152.15,7.11662825]
[1745525298127,21.36957748,152.16,152.15,7.14103667]
[1745525299728,6.5697,152.15,152.12,6.5708]
[1745525300026,14.80017748,152.16,152.12,6.5708]
[1745525300027,14.80017748,152.16,152.13,6.84791174]
[1745525300225,14.80017748,152.16,152.14,8.4911205]
[1745525300416,14.80017748,152.16,152.14,1.64320876]
[1745525300618,21.36957748,152.16,152.12,6.5708]
[1745525300818,21.36957748,152.16,152.13,6.84836196]
[1745525301121,21.36957748,152.16,152.14,6.84836196]
[1745525301317,21.36957748,152.16,152.13,1.64319096]
[1745525301526,21.36957748,152.16,152.11,23.94]
[1745525301824,21.36957748,152.16,152.12,6.5707]
[1745525302021,21.36957748,152.16,152.13,6.8459621]
[1745525302222,21.36957748,152.16,152.12,8.21389114]
[1745525302427,21.36957748,152.16,152.13,8.48853866]
[1745525302621,21.36957748,152.16,152.13,1.64319114]
[1745525302921,21.36957748,152.16,152.12,6.5707]
[1745525303121,30.606,152.21,152.14,6.5699]
[1745525303122,21.36877748,152.18,152.14,6.5699]
[1745525304027,21.36877748,152.18,152.15,6.84237279]
[1745525304228,21.36877748,152.18,152.14,6.5699]
[1745525304428,6.5689,152.17,152.14,6.5699]
[1745525304628,6.5689,152.17,152.15,1.64300216]
[1745525304931,6.5689,152.17,152.14,6.5699]
[1745525305622,14.80017748,152.16,152.11,23.94]
[1745525305829,14.80017748,152.16,152.12,6.84580387]
[1745525306028,14.80017748,152.14,152.1,503.2621]
[1745525306229,14.80017748,152.14,152.11,8.49092882]
[1745525306528,14.80017748,152.14,152.11,1.64330128]
[1745525306728,21.37047748,152.14,152.12,1.64330128]
[1745525306929,14.80017748,152.14,152.12,1.64330128]
[1745525307233,14.80017748,152.18,152.13,6.85052646]
[1745525307434,14.80017748,152.18,152.12,6.5709]
[1745525307633,14.80017748,152.18,152.13,6.85115612]
[1745525307834,6.569,152.17,152.13,1.64318079]
[1745525308033,6.569,152.17,152.12,6.5709]
[1745525308235,6.569,152.17,152.13,6.85495825]
[1745525308436,6.569,152.17,152.14,8.49806526]
[1745525308639,6.569,152.17,152.14,1.64310701]
[1745525308935,6.569,152.17,152.12,6.5709]
[1745525309127,6.5693,152.16,152.13,6.85523763]
[1745525309327,6.5693,152.16,152.14,6.85523763]
[1745525309535,14.80017748,152.18,152.1,25.8828]
[1745525309737,14.80017748,152.18,152.15,1.64310051]
[1745525310129,14.80017748,152.18,152.12,1.973]
[1745525310428,14.80017748,152.16,152.13,6.86167144]
[1745525310632,14.80017748,152.16,152.13,1.64323874]
[1745525310838,6.5698,152.15,152.13,1.64323874]
[1745525311233,9.47341161,152.14,152.12,1.973]
[1745525311531,9.47341161,152.14,152.13,6.86553828]
[1745525311738,9.47341161,152.14,152.11,23.94]
[1745525311936,23.94,152.19,152.12,6.86646116]
[1745525312236,23.94,152.19,152.11,23.94]
[1745525312538,1.17303391,152.18,152.12,6.86850915]
[1745525312837,6.571,152.12,152.1,1.9428]
[1745525313037,6.571,152.12,152.11,6.87048343]
[1745525313237,16.04441161,152.12,152.11,6.87048343]
[1745525313537,9.47341161,152.12,152.11,8.51393544]
[1745525314236,9.47341161,152.13,152.11,8.51393544]
[1745525314438,9.47341161,152.13,152.11,1.64345201]
[1745525314836,9.47341161,152.13,152.12,6.86806314]
[1745525315234,9.47341161,152.13,152.11,1.64345201]
[1745525315430,9.47341161,152.13,152.12,8.5101081]
[1745525316035,16.04391161,152.13,152.12,8.5101081]
[1745525318343,16.04391161,152.13,152.12,8.50598518]
[1745525320142,6.571,152.12,152.08,30.5125]
[1745525320342,9.47341161,152.11,152.09,6.86397947]
[1745525320541,9.47341161,152.11,152.1,8.50747514]
[1745525321745,16.04481161,152.11,152.1,8.50747514]
[1745525322742,16.04481161,152.11,152.1,1.64349567]
[1745525322942,16.04481161,152.11,152.07,6.5729]
[1745525323243,9.47341161,152.1,152.08,6.86533094]
[1745525323435,16.04521161,152.1,152.08,1.6436989]
[1745525323635,16.04521161,152.1,152.09,1.6436989]
[1745525324241,16.04521161,152.1,152.07,6.5729]
[1745525324544,16.04521161,152.1,152.08,8.50785958]
[1745525324748,16.04521161,152.1,152.08,1.64364048]
[1745525325048,16.04521161,152.1,152.07,6.5729]
[1745525325245,16.04521161,152.1,152.08,6.862472]
[1745525325445,16.04521161,152.1,152.07,6.5729]
[1745525325746,6.5722,152.09,152.08,6.861129]
[1745525325946,6.5722,152.09,152.08,8.50485766]
[1745525325947,16.04561161,152.09,152.08,8.50485766]
[1745525326448,9.47341161,152.09,152.08,8.50485766]
[1745525326747,6.572,152.1,152.08,8.50485766]
[1745525326944,6.572,152.1,152.08,1.64372866]
[1745525327145,6.572,152.1,152.07,6.573]
[1745525327346,6.572,152.1,152.08,6.85940779]
[1745525327543,6.572,152.1,152.07,6.573]
[1745525327743,6.572,152.1,152.08,6.85840205]
[1745525327943,6.572,152.1,152.07,6.573]
[1745525328143,6.572,152.1,152.08,6.85840202]
[1745525328344,6.572,152.1,152.07,6.573]
[1745525328546,6.5716,152.11,152.08,13.43193151]
[1745525328745,6.5716,152.11,152.09,8.50290472]
[1745525328946,6.5716,152.11,152.09,1.64357321]
[1745525329648,6.5716,152.11,152.1,1.64357321]
[1745525329843,16.04441161,152.12,152.1,1.64357321]
[1745525330351,16.04441161,152.12,152.09,6.5722]
[1745525331042,9.47341161,152.13,152.1,6.85637383]
[1745525331237,9.47341161,152.13,152.11,6.85637383]
[1745525331441,9.47341161,152.13,152.1,23.94]
[1745525331643,9.47341161,152.13,152.11,13.42652187]
[1745525331948,9.47341161,152.13,152.11,6.5711]
[1745525332652,9.47341161,152.13,152.12,1.64326373]
[1745525333345,9.47341161,152.13,152.1,30.5116]
[1745525333547,9.47341161,152.12,152.11,6.85393444]
[1745525333948,9.47341161,152.12,152.11,8.49726855]
[1745525335751,9.47341161,152.12,152.11,15.06866855]
[1745525336147,9.47341161,152.12,152.11,8.49726855]
[1745525339049,16.04431161,152.12,152.11,8.49726855]
[1745525339242,16.04431161,152.12,152.11,1.64333411]
[1745525340649,16.04431161,152.12,152.1,23.94]
[1745525340849,9.47341161,152.11,152.1,23.94]
[1745525341051,9.47341161,152.11,152.1,30.80130771]
[1745525341550,9.47341161,152.15,152.1,41.91816129]
[1745525341742,9.47341161,152.15,152.11,13.43230771]
[1745525341946,16.04311161,152.15,152.12,6.86130771]
[1745525342250,16.04311161,152.15,152.13,8.50474968]
[1745525342451,16.04311161,152.15,152.13,1.64344197]
[1745525342951,16.04311161,152.15,152.14,1.64344197]